bitfinex-derivatives/quotes_BTCF0:USTF0_20241224
["timestamp","ask_amount","ask_price","bid_price","bid_amount"]
[1735073161907,0.003,97791.0,97790.0,0.411968]
[1735073162216,0.003,97791.0,97778.0,0.412734]
[1735073162217,0.051174,97780.0,97778.0,0.36156]
[1735073162411,0.051174,97780.0,97779.0,0.051173]
[1735073164317,0.001,97780.0,97778.0,0.37331424]
[1735073164512,0.051174,97779.0,97778.0,0.37247424]
[1735073164920,0.051174,97779.0,97778.0,0.3608]
[1735073165516,0.051177,97773.0,97772.0,0.00153402]
[1735073166116,0.051177,97773.0,97772.0,0.05271102]
[1735073166320,0.051177,97773.0,97772.0,0.06411374]
[1735073168019,0.052177,97773.0,97772.0,0.06411374]
[1735073170031,0.001,97773.0,97772.0,0.06411374]
[1735073170227,0.001,97773.0,97772.0,0.42491374]
[1735073170526,0.18310744,97791.0,97790.0,0.051168]
[1735073170820,0.18310744,97791.0,97790.0,0.411968]
[1735073171223,0.051165,97796.0,97790.0,0.3608]
[1735073171519,0.051165,97796.0,97794.0,0.051165]
[1735073173624,0.051165,97796.0,97794.0,0.052165]
[1735073173828,0.053165,97796.0,97794.0,0.052165]
[1735073174013,0.053165,97796.0,97794.0,0.001]
[1735073174219,0.0702,97795.0,97794.0,0.001]
[1735073174817,1.5702,97795.0,97781.0,0.18339636]
[1735073175019,0.051177,97773.0,97772.0,0.00153402]
[1735073176821,0.051177,97773.0,97772.0,0.00353402]
[1735073177219,0.051177,97773.0,97772.0,0.00553402]
[1735073177628,0.051177,97773.0,97772.0,0.00353402]
[1735073177831,0.051177,97773.0,97772.0,0.00453402]
[1735073178024,0.051177,97773.0,97772.0,0.01586669]
[1735073178220,0.051177,97773.0,97772.0,0.01386669]
[1735073178421,0.052177,97773.0,97772.0,0.01386669]
[1735073180139,0.001,97773.0,97772.0,0.37366669]
[1735073180633,0.051165,97796.0,97774.0,0.051176]
[1735073180832,0.051166,97795.0,97790.0,0.051168]
[1735073181028,0.051166,97795.0,97784.0,0.3608]
[1735073181029,0.18310744,97797.0,97786.0,0.10062559]
[1735073181335,0.051166,97794.0,97792.0,0.051167]
[1735073183526,0.05117,97786.0,97785.0,0.18339636]
[1735073184432,0.003,97794.0,97783.0,0.051171]
[1735073184632,0.051171,97785.0,97783.0,0.051171]
[1735073185636,0.052171,97785.0,97783.0,0.051171]
[1735073185929,0.052171,97785.0,97783.0,0.06292181]
[1735073187530,0.051171,97785.0,97783.0,0.06292181]
[1735073187831,0.001,97785.0,97783.0,0.06292181]
[1735073188024,0.1,97800.0,97799.0,0.051163]
[1735073188220,0.1,97800.0,97799.0,0.772763]
[1735073188428,0.051151,97822.0,97799.0,0.772763]
[1735073188628,0.051151,97822.0,97815.0,0.051154]
[1735073189544,0.00110166,97816.0,97815.0,0.051154]
[1735073190224,0.00110166,97816.0,97815.0,0.052154]
[1735073190632,0.00220332,97816.0,97815.0,0.052155]
[1735073191733,0.004,97816.0,97815.0,0.052155]
[1735073191927,0.00730636,97816.0,97815.0,0.052155]
[1735073193931,0.00730636,97816.0,97815.0,0.06339444]
[1735073194128,0.3608,97839.0,97815.0,0.01223944]
[1735073194335,0.10062559,97830.0,97820.0,0.3608]
[1735073194533,0.055154,97816.0,97815.0,0.01223944]
[1735073194929,1.555154,97816.0,97815.0,0.01223944]
[1735073195131,1.695254,97816.0,97815.0,0.001]
[1735073195439,0.195254,97816.0,97815.0,0.001]
[1735073195829,0.051156,97813.0,97812.0,0.0110449]
[1735073196029,0.1481,97816.0,97809.0,0.00153354]
[1735073196236,0.051157,97810.0,97809.0,0.00153354]
[1735073197935,0.05225866,97810.0,97809.0,0.00153354]
[1735073198838,0.05325866,97810.0,97809.0,0.00153354]
[1735073199039,0.05325866,97810.0,97809.0,0.01278535]
[1735073199237,0.05325866,97810.0,97809.0,0.00153354]
[1735073199434,0.051165,97796.0,97794.0,0.051166]
[1735073199930,0.051161,97803.0,97801.0,0.05006034]
[1735073200430,0.3608,97810.0,97793.0,0.10062559]
[1735073200632,0.3608,97810.0,97800.0,0.10062559]
[1735073200933,0.051159,97807.0,97805.0,0.05116]
[1735073201338,0.051156,97813.0,97800.0,0.10062559]
[1735073201537,0.051156,97813.0,97812.0,0.051156]
[1735073202934,0.051156,97813.0,97812.0,0.052156]
[1735073203548,0.05225766,97813.0,97812.0,0.052156]
[1735073204043,0.05525766,97813.0,97812.0,0.052156]
[1735073204830,0.41605766,97813.0,97812.0,0.001]
[1735073205344,0.05525766,97813.0,97812.0,0.001]
[1735073208845,0.05525766,97813.0,97792.0,0.051167]
[1735073209045,0.3608,97800.0,97789.0,0.18339636]
[1735073209345,0.3608,97790.0,97789.0,0.07129636]
[1735073209744,0.4289,97790.0,97789.0,0.07129636]
[1735073210047,0.05117,97785.0,97784.0,0.13194075]
[1735073210347,0.05337322,97785.0,97784.0,0.13194075]
[1735073210549,0.05337322,97785.0,97774.0,0.3608]
[1735073210550,0.00220322,97785.0,97774.0,0.3608]
[1735073210752,0.051176,97775.0,97774.0,0.3608]
[1735073211350,0.05337922,97775.0,97774.0,0.3608]
[1735073213439,0.05437922,97775.0,97774.0,0.3608]
[1735073214452,0.051177,97773.0,97765.0,0.34452]
[1735073214655,0.051188,97753.0,97751.0,0.36156]
[1735073214949,0.05119,97747.0,97741.0,0.30625823]
[1735073215149,0.05119,97747.0,97740.0,0.30545823]
[1735073215352,0.05339322,97747.0,97740.0,0.30545823]
[1735073216350,0.05339322,97747.0,97746.0,0.01125014]
[1735073216552,0.05339322,97747.0,97746.0,0.02025014]
[1735073216759,0.05339322,97747.0,97746.0,0.02625014]
[1735073221956,0.00220322,97747.0,97746.0,0.07744114]
[1735073222160,0.1834632,97781.0,97766.0,0.05118]
[1735073222361,0.051176,97775.0,97766.0,0.41198]
[1735073222554,0.051176,97774.0,97766.0,0.41198]
[1735073222748,0.1834632,97790.0,97766.0,0.3608]
[1735073222949,0.05117,97786.0,97785.0,0.3608]
[1735073225150,0.05217,97786.0,97785.0,0.3608]
[1735073225647,0.05417,97786.0,97785.0,0.3608]
[1735073225858,0.051173,97780.0,97779.0,0.01090663]
[1735073226155,0.051176,97775.0,97770.0,0.051178]
[1735073227072,0.051176,97775.0,97771.0,0.051178]
[1735073227363,0.051176,97775.0,97772.0,0.051177]
[1735073227550,0.002,97786.0,97768.0,0.37261692]
[1735073227749,0.002,97786.0,97784.0,0.051171]
[1735073227957,0.001,97786.0,97785.0,0.3608]
[1735073228464,0.051166,97794.0,97788.0,0.051168]
[1735073228765,0.051165,97796.0,97793.0,0.051166]
[1735073231068,0.46142559,97803.0,97788.0,0.001]
[1735073231264,0.051168,97790.0,97788.0,0.01184652]
[1735073231456,0.051168,97790.0,97786.0,0.051169]
[1735073232660,0.051168,97790.0,97785.0,0.3608]
[1735073232661,0.051168,97790.0,97788.0,0.051169]
[1735073232969,0.052168,97790.0,97788.0,0.051169]
[1735073234255,0.051169,97787.0,97786.0,0.01226514]
[1735073234661,0.051169,97787.0,97786.0,0.01126514]
[1735073234863,0.051169,97787.0,97784.0,0.051171]
[1735073235061,0.051169,97787.0,97784.0,0.062012]
[1735073235267,0.051169,97787.0,97786.0,0.05117]
[1735073235470,0.052169,97787.0,97786.0,0.05117]
[1735073236071,0.051169,97787.0,97786.0,0.05117]
[1735073237566,0.052169,97787.0,97786.0,0.05117]
[1735073250967,0.001,97787.0,97786.0,0.05117]
[1735073251167,0.051172,97782.0,97772.0,0.3608]
[1735073251372,0.05118,97766.0,97762.0,0.051182]
[1735073251877,0.05118,97766.0,97760.0,0.30621823]
[1735073252082,0.051183,97761.0,97760.0,0.30545823]
[1735073252273,0.411983,97761.0,97760.0,0.30545823]
[1735073253073,0.05119,97747.0,97745.0,0.00084]
[1735073253274,0.05119,97747.0,97744.0,0.01081761]
[1735073253275,0.05119,97747.0,97744.0,0.06200961]
[1735073254485,0.18369507,97758.0,97746.0,0.00909665]
[1735073254685,0.18369507,97758.0,97754.0,0.051186]
[1735073254882,0.23488007,97758.0,97754.0,0.051186]
[1735073255177,0.051185,97757.0,97754.0,0.051186]
[1735073255384,0.051185,97757.0,97755.0,0.051186]
[1735073256186,0.051182,97764.0,97750.0,0.051188]
[1735073256376,0.18369507,97772.0,97749.0,0.3608]
[1735073256377,0.051182,97763.0,97749.0,0.3608]
[1735073256770,0.051182,97763.0,97760.0,0.051183]
[1735073256977,0.051182,97763.0,97761.0,0.051183]
[1735073257382,0.051179,97770.0,97765.0,0.05118]
[1735073257584,0.1417,97779.0,97765.0,0.05118]
[1735073257789,0.051179,97769.0,97765.0,0.05118]
[1735073258471,0.1417,97779.0,97765.0,0.05118]
[1735073258681,0.051179,97768.0,97765.0,0.05318]
[1735073259278,0.0688,97779.0,97765.0,0.05318]
[1735073259785,0.051177,97773.0,97765.0,0.05318]
[1735073259980,0.119974,97779.0,97765.0,0.05618]
[1735073260184,0.051173,97781.0,97777.0,0.051174]
[1735073260387,0.051173,97780.0,97777.0,0.051174]
[1735073261484,0.053173,97780.0,97777.0,0.051174]
[1735073262581,0.051174,97779.0,97777.0,0.051174]
[1735073263391,0.001,97780.0,97779.0,0.051174]
[1735073263879,0.051173,97781.0,97779.0,0.051174]
[1735073264784,0.051173,97781.0,97779.0,0.052174]
[1735073265385,0.3608,97793.0,97792.0,0.051167]
[1735073265691,0.3608,97793.0,97784.0,0.3608]
[1735073265994,0.051173,97780.0,97779.0,0.001]
[1735073267394,0.051173,97780.0,97777.0,0.06177034]
[1735073267597,0.051173,97780.0,97777.0,0.051174]
[1735073267784,0.051174,97778.0,97777.0,0.051174]
[1735073267988,0.051177,97772.0,97771.0,0.051178]
[1735073268987,0.051177,97772.0,97771.0,0.05394744]
[1735073270300,0.051177,97772.0,97771.0,0.06453688]
[1735073270501,0.051177,97772.0,97771.0,0.06553688]
[1735073279516,0.3608,97786.0,97771.0,0.01435888]
[1735073279815,0.051175,97777.0,97776.0,0.051175]
[1735073280015,0.051175,97777.0,97776.0,0.05394444]
[1735073280416,0.411975,97777.0,97776.0,0.05394444]
[1735073285415,0.18369507,97784.0,97783.0,0.051171]
[1735073285613,0.00052001,97797.0,97795.0,0.051165]
[1735073286118,0.6054689,97813.0,97795.0,0.05393444]
[1735073286303,0.21363028,97812.0,97795.0,0.05393444]
[1735073286507,0.21363028,97812.0,97811.0,0.051157]
[1735073287114,0.21363028,97812.0,97811.0,0.05392644]
[1735073287413,0.051156,97812.0,97811.0,0.0648477]
[1735073287608,0.054156,97812.0,97811.0,0.0648477]
[1735073288214,0.051156,97812.0,97811.0,0.0648477]
[1735073288413,0.058156,97812.0,97811.0,0.0658477]
[1735073288814,0.058156,97812.0,97811.0,0.0668477]
[1735073291117,0.053156,97812.0,97811.0,0.00376944]
[1735073291707,1.553156,97812.0,97811.0,0.00376944]
[1735073291912,0.053156,97812.0,97811.0,0.00376944]
[1735073292113,0.053156,97812.0,97811.0,0.00276944]
[1735073297421,0.051167,97792.0,97784.0,0.1391]
[1735073297628,0.051166,97794.0,97781.0,0.3608]
[1735073297818,0.051172,97782.0,97781.0,0.37157768]
[1735073299225,0.051172,97782.0,97781.0,0.37857768]
[1735073299528,0.051172,97782.0,97781.0,0.38257768]
[1735073300325,0.051172,97782.0,97781.0,0.37157768]
[1735073302822,0.001,97782.0,97781.0,0.42275068]
[1735073304628,0.051165,97795.0,97781.0,0.37157768]
[1735073304823,0.051165,97795.0,97793.0,0.051166]
[1735073305022,0.051165,97795.0,97794.0,0.0704]
[1735073307118,0.051166,97794.0,97793.0,0.01079666]
[1735073307318,0.051169,97789.0,97787.0,0.051169]
[1735073308128,0.05117,97787.0,97786.0,0.01079774]
[1735073308435,0.051172,97783.0,97781.0,0.3608]
[1735073308827,0.051172,97783.0,97779.0,0.01074078]
[1735073308828,0.051173,97780.0,97779.0,0.01074078]
[1735073309024,0.411973,97780.0,97767.0,0.24389385]
[1735073309228,0.411979,97768.0,97767.0,0.24389385]
[1735073309624,0.411979,97768.0,97751.0,0.051188]
[1735073309823,0.051185,97758.0,97751.0,0.051188]
[1735073310533,0.051185,97758.0,97752.0,0.395028]
[1735073310724,0.051185,97758.0,97752.0,0.34468]
[1735073310924,0.051185,97758.0,97754.0,0.051187]
[1735073311528,0.051185,97758.0,97757.0,0.01234604]
[1735073312030,0.051185,97758.0,97757.0,0.02734604]
[1735073316229,0.051185,97758.0,97757.0,0.01653433]
[1735073316639,0.051185,97758.0,97757.0,0.015]
[1735073317735,0.051185,97758.0,97757.0,0.013]
[1735073318237,0.051185,97758.0,97757.0,0.01]
[1735073337933,0.05119,97747.0,97737.0,0.0015347]
[1735073338136,0.3608,97749.0,97733.0,0.00845678]
[1735073338343,0.411996,97737.0,97733.0,0.00845678]
[1735073338544,1.911996,97737.0,97718.0,0.0688]
[1735073338740,0.051197,97735.0,97734.0,0.24389385]
[1735073339138,0.05130126,97735.0,97734.0,0.24389385]
[1735073339844,0.05130126,97735.0,97734.0,0.25261985]
[1735073340051,0.05130126,97735.0,97734.0,0.30381685]
[1735073340251,0.3608,97749.0,97734.0,0.062923]
[1735073340444,0.051196,97738.0,97735.0,0.119097]
[1735073340647,0.051196,97737.0,97735.0,0.119097]
[1735073340843,0.051196,97737.0,97736.0,0.3608]
[1735073341644,0.051196,97737.0,97736.0,0.3638]
[1735073342846,0.3608,97749.0,97736.0,0.3638]
[1735073343152,0.051188,97752.0,97750.0,0.051188]
[1735073343362,0.051188,97752.0,97751.0,0.0714]
[1735073345043,0.052188,97752.0,97751.0,0.0714]
[1735073346339,0.001,97752.0,97751.0,0.07994751]
[1735073346551,0.18394128,97761.0,97751.0,0.44074751]
[1735073346748,0.18394128,97761.0,97760.0,0.411984]
[1735073346951,0.18394128,97762.0,97760.0,0.051184]
[1735073347251,0.18394128,97762.0,97761.0,0.4258]
[1735073347948,0.18394128,97762.0,97761.0,0.4923]
[1735073348255,0.003,97762.0,97761.0,0.4923]
[1735073348443,0.003,97762.0,97761.0,0.543483]
[1735073349140,0.004,97762.0,97761.0,0.543483]
[1735073349546,0.18394128,97772.0,97761.0,0.543483]
[1735073349743,0.051174,97778.0,97771.0,0.3608]
[1735073349948,0.051174,97778.0,97777.0,0.051175]
[1735073350955,0.051176,97775.0,97772.0,0.0694]
[1735073352149,0.052176,97775.0,97772.0,0.0694]
[1735073352345,0.051176,97774.0,97772.0,0.0694]
[1735073352659,0.001,97775.0,97763.0,0.1831136]
[1735073352851,0.051181,97764.0,97763.0,0.1831136]
[1735073353050,0.051181,97764.0,97763.0,0.19183998]
[1735073353248,1.551181,97764.0,97763.0,0.19183998]
[1735073353445,1.551181,97764.0,97763.0,0.00872638]
[1735073353644,0.3608,97770.0,97761.0,0.065]
[1735073353843,0.051181,97764.0,97763.0,0.001]
[1735073355255,0.051182,97762.0,97761.0,0.07332264]
[1735073357767,0.054182,97762.0,97761.0,0.07332264]
[1735073358152,0.055182,97762.0,97761.0,0.07332264]
[1735073360161,0.052182,97762.0,97761.0,0.07332264]
[1735073360462,0.055182,97762.0,97761.0,0.07332264]
[1735073362567,0.054182,97762.0,97761.0,0.07332264]
[1735073362759,0.055182,97762.0,97761.0,0.07332264]
[1735073365768,0.004,97762.0,97761.0,0.43412264]
[1735073366965,0.053182,97762.0,97761.0,0.05950564]
[1735073367266,0.0597216,97762.0,97761.0,0.05950564]
[1735073367471,0.0085396,97762.0,97761.0,0.42030564]
[1735073368461,0.0075396,97762.0,97761.0,0.42030564]
[1735073369369,0.0065396,97762.0,97761.0,0.42030564]
[1735073369570,0.0085396,97762.0,97761.0,0.42030564]
[1735073370052,0.0075396,97762.0,97761.0,0.42030564]
[1735073370255,0.001,97762.0,97761.0,0.05950564]
[1735073370664,0.001,97762.0,97761.0,0.00832264]
[1735073370966,0.001,97762.0,97756.0,0.051186]
[1735073371168,0.051185,97757.0,97756.0,0.051186]
[1735073371355,0.0577261,97757.0,97756.0,0.051186]
[1735073372777,0.0587261,97757.0,97756.0,0.051186]
[1735073372962,0.0075411,97757.0,97745.0,0.3608]
[1735073373168,0.3608,97753.0,97745.0,0.051191]
[1735073373362,0.051191,97746.0,97745.0,0.051191]
[1735073373561,0.05773525,97746.0,97745.0,0.051191]
[1735073373762,0.05773525,97746.0,97744.0,0.1831136]
[1735073373957,0.00654425,97745.0,97744.0,0.1831136]
[1735073374375,0.00758331,97745.0,97740.0,0.00153459]
[1735073374665,0.051193,97741.0,97740.0,0.00153459]
[1735073374855,0.05773725,97741.0,97740.0,0.01009535]
[1735073375063,0.05773725,97741.0,97740.0,0.00153459]
[1735073375472,0.05877631,97741.0,97740.0,0.00153459]
[1735073376268,0.05877631,97741.0,97740.0,0.00353459]
[1735073376773,0.05877631,97741.0,97740.0,0.00753459]
[1735073376976,0.05877631,97741.0,97740.0,0.01647622]
[1735073379674,0.05877094,97741.0,97740.0,0.01647622]
[1735073379875,0.05877094,97741.0,97740.0,0.006]
[1735073380064,0.41957094,97741.0,97740.0,0.006]
[1735073382267,0.41956979,97741.0,97740.0,0.006]
[1735073384467,0.051206,97717.0,97712.0,0.0688]
[1735073384663,0.051206,97717.0,97716.0,0.07653868]
[1735073385076,0.05224506,97717.0,97716.0,0.07653868]
[1735073385774,0.05224506,97717.0,97716.0,0.00913868]
[1735073386074,0.05424506,97717.0,97716.0,0.017]
[1735073386271,0.051213,97703.0,97700.0,0.1]
[1735073386474,0.0577443,97703.0,97700.0,0.1]
[1735073386674,0.0577443,97703.0,97701.0,0.00911124]
[1735073386980,0.0577443,97703.0,97700.0,0.1]
[1735073387167,0.051214,97701.0,97700.0,0.1]
[1735073387367,0.0577453,97701.0,97700.0,0.1]
[1735073387969,0.0577453,97701.0,97700.0,0.1089393]
[1735073388171,0.05878436,97701.0,97700.0,0.1089393]
[1735073388378,0.05978436,97701.0,97700.0,0.1139393]
[1735073388870,0.05977926,97701.0,97700.0,0.1139393]
[1735073389164,0.06077926,97701.0,97700.0,0.1229393]
[1735073390574,0.06077146,97701.0,97700.0,0.1229393]
[1735073390979,0.06077146,97701.0,97700.0,0.114]
[1735073390980,0.42157146,97701.0,97700.0,0.114]
[1735073391372,0.41505306,97701.0,97700.0,0.114]
[1735073394381,0.42156612,97701.0,97700.0,0.114]
[1735073395487,0.41505306,97701.0,97700.0,0.114]
[1735073400497,0.42157634,97701.0,97700.0,0.114]
[1735073402498,0.42158472,97701.0,97700.0,0.114]
[1735073404500,0.41505306,97701.0,97700.0,0.114]
[1735073405597,0.4215846,97701.0,97700.0,0.114]
[1735073407806,0.42158802,97701.0,97700.0,0.114]
[1735073408696,0.42159004,97701.0,97700.0,0.114]
[1735073409200,0.42159004,97701.0,97700.0,0.009]
[1735073409505,0.051222,97686.0,97681.0,0.00153553]
[1735073409697,0.41855898,97686.0,97681.0,0.00153553]
[1735073409902,1.91855898,97686.0,97681.0,0.18464913]
[1735073410303,0.05879804,97686.0,97685.0,0.00936692]
[1735073410695,0.05979804,97686.0,97685.0,0.01836692]
[1735073410897,0.06079804,97686.0,97685.0,0.02636692]
[1735073411694,0.06080736,97686.0,97685.0,0.02636692]
[1735073411905,0.051223,97684.0,97683.0,0.01134589]
[1735073412095,0.0577693,97684.0,97683.0,8.9e-07]
[1735073412298,0.05880836,97684.0,97683.0,8.9e-07]
[1735073412802,0.05889473,97684.0,97683.0,8.9e-07]
[1735073413003,0.05880836,97684.0,97683.0,8.9e-07]
[1735073413195,0.05989473,97684.0,97683.0,8.9e-07]
[1735073413591,0.051233,97666.0,97665.0,0.00153603]
[1735073413796,0.4185793,97666.0,97665.0,0.00153603]
[1735073414002,0.41866567,97666.0,97665.0,0.00153603]
[1735073414303,0.41970473,97666.0,97665.0,0.00153603]
[1735073414606,0.41970473,97666.0,97665.0,0.0105033]
[1735073414907,0.42070473,97666.0,97665.0,0.0105033]
[1735073415295,0.42170473,97666.0,97665.0,0.0105033]
[1735073415804,0.15311376,97680.0,97672.0,0.051229]
[1735073416002,0.15311376,97680.0,97673.0,0.1315]
[1735073416505,0.051226,97679.0,97675.0,0.3608]
[1735073416697,0.051226,97679.0,97677.0,0.051227]
[1735073417906,0.052226,97679.0,97677.0,0.051227]
[1735073418109,0.001,97679.0,97674.0,0.24415146]
[1735073418407,0.051228,97675.0,97674.0,0.24415146]
[1735073419398,0.051232,97668.0,97666.0,0.0628]
[1735073420911,0.051232,97668.0,97666.0,0.114033]
[1735073421301,0.052232,97668.0,97666.0,0.114033]
[1735073421503,0.053232,97668.0,97666.0,0.114033]
[1735073421903,0.052232,97668.0,97666.0,0.114033]
[1735073422107,0.053232,97668.0,97666.0,0.114033]
[1735073422803,0.052232,97668.0,97666.0,0.114033]
[1735073423003,0.053232,97668.0,97666.0,0.114033]
[1735073423404,0.053232,97668.0,97666.0,0.0628]
[1735073427711,0.002,97668.0,97665.0,0.0105033]
[1735073427911,0.051233,97666.0,97665.0,0.0105033]
[1735073429314,0.052233,97666.0,97665.0,0.0105033]
[1735073429717,0.053233,97666.0,97665.0,0.0105033]
[1735073433213,0.002,97666.0,97665.0,0.0105033]
[1735073433407,0.053233,97666.0,97665.0,0.0617363]
[1735073439519,0.002,97666.0,97665.0,0.0617363]
[1735073447025,0.002,97666.0,97665.0,0.4225363]
[1735073451330,0.18394128,97680.0,97672.0,0.05123]
[1735073451515,0.18394128,97680.0,97679.0,0.051226]
[1735073451719,0.23516628,97680.0,97679.0,0.051226]
[1735073452625,0.052225,97680.0,97679.0,0.051226]
[1735073453427,0.053225,97680.0,97679.0,0.051226]
[1735073454026,0.053225,97680.0,97677.0,0.3608]
[1735073454027,0.051226,97678.0,97671.0,0.24471556]
[1735073454236,0.05123,97672.0,97671.0,0.25877089]
[1735073454737,0.05123,97672.0,97671.0,0.01405533]
[1735073454915,0.0631,97677.0,97670.0,0.05123]
[1735073455237,0.05123,97671.0,97670.0,0.05123]
[1735073456731,0.05223,97671.0,97670.0,0.05123]
[1735073457627,0.05323,97671.0,97670.0,0.05123]
[1735073458337,0.05323,97671.0,97670.0,0.06519099]
[1735073460325,0.002,97671.0,97670.0,0.06519099]
[1735073461628,0.05323,97671.0,97670.0,0.06519099]
[1735073463927,0.002,97671.0,97670.0,0.42599099]
[1735073465336,0.051224,97683.0,97682.0,0.051224]
[1735073466936,0.052224,97683.0,97682.0,0.051224]
[1735073468425,0.052224,97683.0,97682.0,0.06562352]
[1735073478741,0.001,97683.0,97682.0,0.06562352]
[1735073480147,0.18394128,97693.0,97682.0,0.06562352]
[1735073480148,0.18394128,97693.0,97692.0,0.051219]
[1735073480445,0.18394128,97693.0,97692.0,0.412019]
[1735073480836,0.051213,97704.0,97698.0,0.051216]
[1735073480837,0.18394128,97699.0,97698.0,0.051216]
[1735073482160,0.18494128,97699.0,97698.0,0.051216]
[1735073482468,0.002,97699.0,97698.0,0.051216]
[1735073483259,0.18394128,97712.0,97711.0,0.051209]
[1735073483458,0.18394128,97712.0,97698.0,0.051216]
[1735073483459,0.051206,97718.0,97704.0,0.3608]
[1735073483659,0.051206,97718.0,97716.0,0.051207]
[1735073485068,0.056206,97718.0,97716.0,0.052207]
[1735073485470,0.059206,97718.0,97716.0,0.052207]
[1735073486071,0.008,97718.0,97716.0,0.052207]
[1735073487777,0.008,97718.0,97717.0,0.0645]
[1735073488575,0.005,97718.0,97717.0,0.0645]
[1735073488970,0.001,97718.0,97717.0,0.0645]
[1735073490667,0.052206,97718.0,97704.0,0.00076]
[1735073490872,0.051213,97703.0,97697.0,0.051216]
[1735073491080,0.051215,97700.0,97699.0,0.24471556]
[1735073491369,1.551215,97700.0,97699.0,0.24471556]
[1735073491574,0.051217,97697.0,97692.0,0.30545823]
[1735073491781,0.3608,97693.0,97692.0,0.30545823]
[1735073492077,0.3608,97693.0,97692.0,0.10505823]
[1735073492272,0.3608,97693.0,97667.0,0.0635]
[1735073492273,0.051219,97692.0,97667.0,0.0635]
[1735073492477,0.412025,97680.0,97665.0,0.00153603]
[1735073492666,0.41855932,97680.0,97665.0,0.00153603]
[1735073492864,0.41855932,97680.0,97669.0,0.01436074]
[1735073493073,0.36744967,97680.0,97665.0,0.00153603]
[1735073493275,0.412033,97666.0,97665.0,0.00153603]
[1735073493470,0.41856732,97666.0,97665.0,0.00153603]
[1735073494280,0.41867995,97666.0,97665.0,0.00153603]
[1735073495067,0.54194131,97666.0,97665.0,0.00253603]
[1735073495372,0.54294131,97666.0,97665.0,0.00853603]
[1735073496473,0.42069028,97666.0,97665.0,0.00853603]
[1735073498273,0.00865728,97666.0,97665.0,0.00853603]
[1735073498778,0.00211263,97666.0,97665.0,0.00853603]
[1735073503578,0.00865728,97666.0,97665.0,0.00853603]
[1735073503978,0.00211263,97666.0,97665.0,0.00853603]
[1735073507777,0.3694376,97666.0,97665.0,0.00853603]
[1735073508575,0.3694376,97666.0,97649.0,0.061]
[1735073508775,0.051241,97650.0,97649.0,0.061]
[1735073508979,0.05776597,97650.0,97649.0,0.061]
[1735073509281,0.051243,97646.0,97645.0,0.00153617]
[1735073509479,0.412043,97646.0,97645.0,0.00153617]
[1735073510273,0.051249,97636.0,97635.0,0.34404]
[1735073510477,0.05776677,97636.0,97635.0,0.34404]
[1735073510680,0.051252,97630.0,97628.0,0.051253]
[1735073510875,0.051254,97625.0,97612.0,0.72570205]
[1735073511178,0.051259,97616.0,97615.0,0.051259]
[1735073511382,0.00651777,97616.0,97615.0,0.051259]
[1735073511578,0.051257,97620.0,97612.0,0.3608]
[1735073511783,0.00651907,97619.0,97617.0,0.051258]
[1735073512185,0.001,97625.0,97612.0,0.37336687]
[1735073512186,0.00651907,97618.0,97612.0,0.37412687]
[1735073512484,0.05126,97614.0,97612.0,0.37336687]
[1735073512685,0.00651907,97613.0,97612.0,0.37336687]
[1735073512989,0.05126,97614.0,97612.0,0.37336687]
[1735073513187,0.00651737,97613.0,97612.0,0.37336687]
[1735073513386,0.051261,97612.0,97610.0,0.00011542]
[1735073513578,0.00651603,97611.0,97610.0,0.00011542]
[1735073513974,0.00660784,97611.0,97610.0,0.00011542]
[1735073515181,0.00760784,97611.0,97610.0,0.00011542]
[1735073515784,0.00860784,97611.0,97610.0,0.00011542]
[1735073515971,0.00860784,97611.0,97600.0,0.1]
[1735073516172,0.051267,97601.0,97600.0,0.1]
[1735073516374,0.05778303,97601.0,97600.0,0.1]
[1735073517879,0.05878303,97601.0,97600.0,0.1]
[1735073518284,0.05986225,97601.0,97600.0,0.1]
[1735073519187,0.0598554,97601.0,97600.0,0.1]
[1735073520487,0.051271,97593.0,97592.0,0.00153649]
[1735073520789,0.051279,97579.0,97577.0,0.126]
[1735073521085,0.36730918,97578.0,97577.0,0.126]
[1735073522492,0.36730918,97578.0,97577.0,0.13882903]
[1735073523095,0.00750918,97578.0,97577.0,0.13882903]
[1735073523481,0.001,97578.0,97577.0,0.13882903]
[1735073524391,0.001,97578.0,97577.0,0.0617]
[1735073524595,0.00752008,97578.0,97577.0,0.0617]
[1735073526293,0.0075939,97578.0,97577.0,0.0617]
[1735073526495,0.00759039,97578.0,97577.0,0.0617]
[1735073526988,0.051285,97568.0,97564.0,0.395486]
[1735073527197,0.051285,97566.0,97565.0,0.0603]
[1735073527590,0.05780042,97566.0,97565.0,0.0603]
[1735073529295,0.05880042,97566.0,97565.0,0.0603]
[1735073529689,0.05980042,97566.0,97565.0,0.0603]
[1735073529883,0.002,97566.0,97565.0,0.0603]
[1735073531180,7.382e-05,97578.0,97569.0,0.051284]
[1735073531386,0.051282,97572.0,97570.0,0.051283]
[1735073532294,0.00651025,97571.0,97570.0,0.051283]
[1735073533788,0.00651361,97571.0,97570.0,0.051283]
[1735073534099,0.00751361,97571.0,97570.0,0.051283]
[1735073534294,0.00751361,97571.0,97565.0,0.1603]
[1735073534497,0.00751361,97571.0,97565.0,0.211586]
[1735073534498,0.051285,97567.0,97565.0,0.211586]
[1735073534697,0.00551361,97566.0,97565.0,0.211586]
[1735073535394,0.051285,97567.0,97565.0,0.211586]
[1735073535699,0.052285,97567.0,97565.0,0.212586]
[1735073536395,0.052285,97567.0,97565.0,0.211586]
[1735073536592,0.001,97566.0,97565.0,0.212586]
[1735073536996,0.052285,97567.0,97565.0,0.211586]
[1735073537300,0.053285,97567.0,97565.0,0.212586]
[1735073537700,0.052285,97567.0,97565.0,0.212586]
[1735073537901,0.001,97566.0,97565.0,0.212586]
[1735073538491,0.001,97566.0,97565.0,0.211586]
[1735073538696,0.002,97566.0,97565.0,0.211586]
[1735073539294,0.001,97566.0,97565.0,0.211586]
[1735073540095,0.002,97566.0,97565.0,0.211586]